[Event "FIDE Candidates 2020"]
[White "Vachier-Lagrave,Maxime"]
[Black "Alekseenko,Kirill"]
[Site "Yekaterinburg"]
[Round "12.3"]
[Annotator "ChessBase"]
[Result "1-0"]
[Date "2021.04.24"]
[WhiteElo "2758"]
[BlackElo "2696"]
[PlyCount "89"]
[TimeControl "60"]

1. e4 {[%emt 0:0:0]} c6 {[%emt 0:0:0]} 2. d4 {[%emt 0:0:13]} d5 {[%emt 0:0:0]} 3. f3 {[%emt 0:0:4]} dxe4 {[%emt 0:0:0]} 4. fxe4 {[%emt 0:0:46]} e5 {[%emt 0:0:17]} 5. Nf3 {[%emt 0:0:58]} Bg4 {[%emt 0:0:30]} 6. c3 {[%emt 0:1:10]
} Nf6 {[%emt 0:2:51]} 7. Bc4 {[%emt 0:4:22]} Qc7 {[%emt 0:0:0]} 8. dxe5 {[%emt 0:7:30]} Bxf3 {[%emt 0:3:58]} 9. Qxf3 {[%emt 0:3:40]} Qxe5 {[%emt 0:0:10]} 10. Bf4 {[%emt 0:0:15]} Qh5 {[%emt 0:25:8]} 11. Nd2 {[%emt 0:3:3]
} Nbd7 {[%emt 0:0:11]} 12. 0-0-0 {[%emt 0:1:40]} Nb6 {[%emt 0:0:0]} 13. Bb3 {[%emt 0:3:47]} Be7 {[%emt 0:6:35]} 14. Rhg1 {[%emt 0:6:13]} Qxf3 {[%emt 0:3:43]} 15. gxf3 {[%emt 0:0:45]} g6 {[%emt 0:0:27]} 16. Nc4 {[%emt 0:9:15]
} Nxc4 {[%emt 0:5:4]} 17. Bxc4 {[%emt 0:0:7]} b5 {[%emt 0:0:0]} 18. Bb3 {[%emt 0:1:4]} Nd7 {[%emt 0:0:0]} 19. Bxf7+ {[%emt 0:2:10]} Kxf7 {[%emt 0:2:44]} 20. Rxd7 {[%emt 0:0:7]} Ke6 {[%emt 0:0:3]} 21. Rc7 {[%emt 0:5:45]
} Rhc8 {[%emt 0:0:0]} 22. Rxc8 {[%emt 0:23:50]} Rxc8 {[%emt 0:0:0]} 23. Be3 {[%emt 0:0:4]} a5 {[%emt 0:0:4]} 24. Kd2 {[%emt 0:1:10]} a4 {[%emt 0:0:4]} 25. f4 {[%emt 0:0:2]} Rd8+ {[%emt 0:0:4]} 26. Ke2 {[%emt 0:0:2]
} Rf8 {[%emt 0:0:6]} 27. Kf3 {[%emt 0:0:17]} Rd8 {[%emt 0:0:0]} 28. Rc1 {[%emt 0:0:29]} c5 {[%emt 0:0:0]} 29. c4 {[%emt 0:0:0]} b4 {[%emt 0:0:0]
} 30. Ke2 {[%emt 0:0:0]} Rd7 {[%emt 0:0:0]} 31. Rd1 {[%emt 0:0:0]} Rxd1 {[%emt 0:0:0]} 32. Kxd1 {[%emt 0:0:0]} Bf8 {[%emt 0:0:0]} 33. Kc2 {[%emt 0:0:0]} Be7 {[%emt 0:0:0]} 34. b3 {[%emt 0:0:0]} a3 {[%emt 0:0:0]
} 35. Kd3 {[%emt 0:0:0]} Bf8 {[%emt 0:0:0]} 36. Bf2 {[%emt 0:0:0]} Be7 {[%emt 0:0:0]} 37. Ke3 {[%emt 0:0:0]} Bd8 {[%emt 0:0:0]} 38. Kf3 {[%emt 0:0:0]} Be7 {[%emt 0:0:0]} 39. Kg4 {[%emt 0:0:0]} h5+ {[%emt 0:0:0]
} 40. Kf3 {[%emt 0:0:0]} Bf8 {[%emt 0:0:0]} 41. Bh4 {[%emt 0:0:0]} Bd6 {[%emt 0:16:26]} 42. e5 {[%emt 0:0:0]} Bc7 {[%emt 0:0:0]} 43. Ke4 Ba5 44. Bg5 Bb6 45. Bh6 1-0